bitfinex-derivatives/quotes_SOLF0:USTF0_20251209
["timestamp","ask_amount","ask_price","bid_price","bid_amount"]
[1765251514185,3.23,133.49,133.45,0.05169652]
[1765251514386,3.23,133.47,133.45,0.05169652]
[1765251515080,3.23,133.47,133.42,6.7448]
[1765251516084,3.23,133.47,133.43,0.04973892]
[1765251526106,9.9729,133.47,133.43,0.04973892]
[1765251526306,3.23,133.45,133.43,0.04973892]
[1765251527018,3.23,133.45,133.39,6.7462]
[1765251528020,3.23,133.44,133.39,6.7462]
[1765251528210,3.23,133.42,133.4,0.05425051]
[1765251530919,9.27482527,133.49,133.41,4.21034233]
[1765251531108,3.38,133.53,133.48,104.8756]
[1765251531310,3.38,133.53,133.48,109.08334233]
[1765251532113,3.38,133.53,133.5,111.5998]
[1765251532513,3.43089089,133.53,133.5,111.65757816]
[1765251533210,3.43089089,133.53,133.5,6.79867816]
[1765251533515,3.43089089,133.53,133.5,0.05777816]
[1765251535121,3.43089089,133.53,133.46,6.7429]
[1765251535317,3.38,133.53,133.46,6.7429]
[1765251536223,3.38,133.5,133.48,0.05579976]
[1765251537725,3.43577269,133.51,133.48,0.05579976]
[1765251538618,0.05577269,133.51,133.48,111.67349976]
[1765251538820,3.43577269,133.51,133.48,6.79749976]
[1765251539928,3.43577269,133.51,133.48,0.05579976]
[1765251543134,3.16,133.49,133.48,0.05579976]
[1765251544527,3.16,133.48,133.43,10.95484233]
[1765251544728,3.16,133.47,133.43,10.95484233]
[1765251545532,0.04958642,133.46,133.44,0.05607609]
[1765251545934,0.04958642,133.46,133.44,6.79977609]
[1765251546834,5.5891301,133.51,133.46,104.8912]
[1765251547040,3.16,133.53,133.46,109.10154233]
[1765251547234,8.74851936,133.52,133.46,109.10154233]
[1765251547439,3.16,133.52,133.46,109.10154233]
[1765251547637,3.16,133.52,133.46,104.8912]
[1765251547935,3.20754079,133.5,133.48,0.04771852]
[1765251548137,3.21016919,133.5,133.48,0.04771852]
[1765251552234,3.16,133.49,133.44,6.7437]
[1765251553334,3.16,133.49,133.45,0.05126603]
[1765251553738,9.9018,133.49,133.45,0.05126603]
[1765251553943,3.16,133.48,133.45,0.05126603]
[1765251555740,9.9023,133.48,133.45,0.05126603]
[1765251555941,3.16,133.46,133.42,6.7448]
[1765251557052,3.16,133.44,133.42,6.7448]
[1765251557749,3.16,133.44,133.38,168.6506]
[1765251557750,3.16,133.44,133.4,6.7457]
[1765251558952,3.07,133.55,133.48,104.8757]
[1765251559140,3.07,133.55,133.5,1.77130252]
[1765251560045,3.12764998,133.54,133.51,0.05724103]
[1765251571255,3.07,133.52,133.45,104.8955]
[1765251571458,3.07,133.52,133.47,6.7422]
[1765251572356,3.07,133.5,133.47,6.7422]
[1765251576251,0.05295242,133.51,133.45,104.8955]
[1765251576455,0.05295242,133.51,133.49,6.7414]
[1765251578962,3.12295242,133.51,133.49,6.7414]
[1765251582558,3.12295242,133.51,133.46,119.0]
[1765251582767,3.07,133.49,133.42,223.9187]
[1765251582959,3.12148305,133.47,133.42,223.9187]
[1765251583360,3.12148305,133.47,133.42,104.9187]
[1765251583858,3.12148305,133.47,133.44,6.7438]
[1765251585368,3.12148305,133.47,133.45,6.7434]
[1765251590568,3.12148305,133.47,133.43,6.7443]
[1765251590762,3.3,133.45,133.43,6.7443]
[1765251591660,3.3,133.45,133.41,119.0]
[1765251591661,3.3,133.45,133.41,125.7453]
[1765251591856,3.3,133.45,133.41,6.7453]
[1765251593668,3.3,133.46,133.43,6.7442]
[1765251593867,0.05148305,133.47,133.43,6.7442]
[1765251594071,3.35148305,133.47,133.43,6.7442]
[1765251601678,3.35148305,133.47,133.41,125.7452]
[1765251601679,3.3,133.45,133.41,125.7452]
[1765251601977,3.3,133.45,133.41,6.7452]
[1765251602165,3.3,133.43,133.41,6.7452]
[1765251602365,3.35277662,133.43,133.41,6.7452]
[1765251603380,0.05277662,133.43,133.41,6.7452]
[1765251606284,3.24277662,133.43,133.41,6.7452]
[1765251610491,3.24277662,133.43,133.39,125.7462]
[1765251610681,3.24277662,133.43,133.39,6.7462]
[1765251610682,3.19,133.41,133.39,6.7462]
[1765251612285,3.19,133.39,133.37,6.7472]
[1765251612486,3.2409457,133.39,133.37,6.7472]
[1765251612885,0.0509457,133.39,133.37,6.7472]
[1765251613086,3.2409457,133.39,133.37,6.7472]
[1765251613483,3.2409457,133.39,133.35,6.7482]
[1765251616180,0.0509457,133.39,133.35,104.9764]
[1765251616581,0.0509457,133.39,133.36,2.76722383]
[1765251617592,0.0509457,133.39,133.37,6.7473]
[1765251620699,0.0509457,133.39,133.37,125.7473]
[1765251625303,0.0509457,133.39,133.37,6.7473]
[1765251626605,3.3109457,133.39,133.37,6.7473]
[1765251628203,3.3109457,133.39,133.35,6.7482]
[1765251629105,0.0509457,133.39,133.38,1.77242197]
[1765251630599,0.0509457,133.39,133.38,120.77242197]
[1765251632021,6.9763394,133.47,133.43,6.7443]
[1765251632302,3.26,133.45,133.42,63.74]
[1765251633098,5.91522247,133.44,133.42,0.05459474]
[1765251633408,3.31683789,133.45,133.42,0.05459474]
[1765251634606,3.31683789,133.45,133.42,1.82701671]
[1765251635201,0.05683789,133.45,133.42,8.57181671]
[1765251635409,3.31683789,133.45,133.42,8.57181671]
[1765251637402,3.31683789,133.45,133.42,6.79939474]
[1765251638908,0.05683789,133.45,133.43,1.77242197]
[1765251640001,3.31683789,133.45,133.42,6.79939474]
[1765251641002,3.31683789,133.45,133.43,1.77242197]
[1765251641201,0.05683789,133.45,133.43,1.77242197]
[1765251642008,0.05683789,133.45,133.43,113.43202197]
[1765251642215,0.05683789,133.45,133.43,8.51662197]
[1765251642414,0.05683789,133.45,133.43,6.7442]
[1765251642613,0.05683789,133.45,133.43,8.51662197]
[1765251643410,3.31683789,133.45,133.43,1.77242197]
[1765251644114,3.26,133.43,133.42,0.05459474]
[1765251644507,3.26,133.44,133.42,0.05459474]
[1765251647115,9.13708459,133.43,133.42,0.05459474]
[1765251647707,9.13708459,133.43,133.37,223.9625]
[1765251647708,3.26,133.42,133.38,1.77242197]
[1765251648709,3.35464232,133.41,133.38,1.77242197]
[1765251651119,3.35464232,133.41,133.37,6.7474]
[1765251651322,3.35464232,133.41,133.38,1.77242197]
[1765251652022,3.35464232,133.41,133.38,8.51932197]
[1765251652212,0.05464232,133.41,133.38,1.77242197]
[1765251652613,0.05464232,133.41,133.4,1.77242197]
[1765251653414,3.3,133.46,133.4,171.92802197]
[1765251653618,3.3,133.46,133.43,1.77242197]
[1765251653619,5.87732083,133.45,133.43,1.77242197]
[1765251653820,3.3,133.46,133.4,168.6556]
[1765251654015,5.87731833,133.45,133.42,1.77242197]
[1765251654222,3.3,133.46,133.42,1.77242197]
[1765251654517,5.92486917,133.45,133.43,0.04797941]
[1765251654712,0.04789217,133.45,133.43,0.04797941]
[1765251656521,0.04789217,133.45,133.43,6.79217941]
[1765251656925,3.34789217,133.45,133.43,6.79217941]
[1765251657126,0.04789217,133.45,133.43,6.79217941]
[1765251658430,0.04789217,133.45,133.43,8.56460138]
[1765251659623,0.04789217,133.45,133.43,6.79217941]
[1765251660629,3.34789217,133.45,133.43,6.79217941]
[1765251661024,3.34789217,133.45,133.43,0.04797941]
[1765251661918,5.12031414,133.45,133.43,0.04797941]
[1765251662127,14.82342514,133.44,133.43,0.04797941]
[1765251662429,3.3,133.43,133.39,6.7464]
[1765251662632,3.3,133.41,133.39,6.7464]
[1765251663219,3.34744332,133.41,133.39,6.7464]
[1765251663931,0.04744332,133.41,133.39,6.7464]
[1765251679144,3.14744332,133.41,133.39,6.7464]
[1765251679747,0.04744332,133.41,133.39,6.7464]
[1765251683554,3.14744332,133.41,133.39,6.7464]
[1765251683855,3.14744332,133.41,133.37,189.4673]
[1765251684058,8.97898467,133.4,133.37,70.4673]
[1765251684254,3.1,133.4,133.37,70.4673]
[1765251686051,3.1,133.4,133.35,119.0]
[1765251686264,3.1,133.38,133.35,70.4684]
[1765251686452,5.87883184,133.37,133.33,104.9925]
[1765251686749,0.04789201,133.38,133.33,104.9925]
[1765251686750,3.14789201,133.38,133.33,104.9925]
[1765251687050,3.1,133.36,133.32,1.77242197]
[1765251687646,3.1,133.36,133.33,6.7494]
[1765251687845,8.97694224,133.35,133.32,1.77242197]
[1765251688042,8.97707368,133.34,133.31,63.72]
[1765251688262,3.1,133.34,133.31,70.4703]
[1765251689663,0.05419059,133.35,133.32,6.7499]
[1765251689868,3.15419059,133.35,133.32,6.7499]
[1765251690259,0.05419059,133.35,133.32,6.7499]
[1765251693669,0.05419059,133.35,133.33,6.7493]
[1765251695867,3.1,133.41,133.36,6.748]
[1765251696662,3.1,133.41,133.37,6.7473]
[1765251697066,3.15398536,133.4,133.38,0.05617486]
[1765251697275,3.14853515,133.4,133.38,0.05617486]
[1765251699172,0.04853515,133.4,133.38,0.05617486]
[1765251699570,3.14853515,133.4,133.38,0.05617486]
[1765251699770,3.1,133.38,133.31,107.77799259]
[1765251700076,3.1,133.38,133.32,168.7366]
[1765251700780,0.05612965,133.36,133.32,168.7366]
[1765251701081,0.05612965,133.36,133.34,6.7489]
[1765251704880,3.1,133.42,133.36,6.7478]
[1765251705081,8.95707634,133.41,133.36,6.7478]
[1765251705283,3.1,133.41,133.36,6.7478]
[1765251705482,3.1,133.41,133.37,6.7472]
[1765251705782,0.05722868,133.4,133.38,0.05426598]
[1765251709084,3.27722868,133.4,133.38,0.05426598]
[1765251713185,0.05722868,133.4,133.38,0.05426598]
[1765251713379,3.27722868,133.4,133.38,0.05426598]
[1765251715187,0.05722868,133.4,133.38,6.80096598]
[1765251718392,3.27722868,133.4,133.38,6.80096598]
[1765251719491,0.05722868,133.4,133.38,6.80096598]
[1765251719686,3.27722868,133.4,133.38,6.80096598]
[1765251720090,3.27722868,133.4,133.38,0.05426598]
[1765251720293,0.05722868,133.4,133.38,0.05426598]
[1765251720686,0.05722868,133.4,133.38,6.80106598]
[1765251721691,0.05722868,133.4,133.39,2.77109259]
[1765251721888,0.05722868,133.4,133.38,125.80106598]
[1765251722289,0.05722868,133.4,133.39,2.77109259]
[1765251723102,3.28,133.44,133.39,107.71629259]
[1765251723291,5.86486971,133.43,133.39,226.71629259]
[1765251723492,3.28,133.44,133.39,226.71629259]
[1765251723697,5.86434064,133.43,133.39,226.71629259]
[1765251723891,3.28,133.44,133.4,63.74]
[1765251724095,0.05068806,133.43,133.4,63.74]
[1765251724400,0.05068806,133.43,133.41,6.7453]
[1765251726404,3.33068806,133.43,133.4,182.74]
[1765251727100,3.33068806,133.43,133.4,119.0]
[1765251729099,3.33068806,133.43,133.39,6.7462]
[1765251732901,3.33068806,133.43,133.4,6.7458]
[1765251733204,0.05068806,133.43,133.39,104.9447]
[1765251734699,0.05068806,133.43,133.41,6.7454]
[1765251737010,3.33068806,133.43,133.39,125.7463]
[1765251737210,3.33068806,133.43,133.39,189.4663]
[1765251741009,3.33068806,133.43,133.39,70.4663]
[1765251742214,3.33068806,133.43,133.39,6.7463]
[1765251746216,3.33068806,133.43,133.38,189.52116598]
[1765251746418,3.24,133.41,133.38,189.52116598]
[1765251746619,3.24,133.41,133.38,70.52116598]
[1765251749122,3.24,133.41,133.38,6.80116598]
[1765251749318,9.1055858,133.4,133.38,6.80116598]
[1765251749524,3.24,133.4,133.38,6.80116598]
[1765251752827,3.24,133.4,133.38,0.05426598]
[1765251753132,5.84765641,133.39,133.38,0.05426598]
[1765251754531,3.29052765,133.4,133.38,0.05426598]
[1765251755545,5.84842969,133.39,133.38,0.05426598]
[1765251756340,3.29052765,133.4,133.38,0.05426598]
[1765251756636,5.84863187,133.39,133.38,0.05426598]
[1765251757437,3.29052765,133.4,133.38,0.05426598]
[1765251758745,5.85436788,133.39,133.38,0.05426598]
[1765251759243,3.29052765,133.4,133.38,0.05426598]
[1765251760034,0.05052765,133.4,133.39,65.5115705]
[1765251764343,0.05052765,133.4,133.39,1.7715705]
[1765251764743,0.05052765,133.4,133.39,65.4915705]
[1765251765144,3.29052765,133.4,133.38,8.57253648]
[1765251766346,3.29052765,133.4,133.38,6.80096598]
[1765251766647,9.07579212,133.39,133.38,0.05426598]
[1765251782658,5.83579212,133.39,133.38,0.05426598]
[1765251783061,9.03579212,133.39,133.38,0.05426598]
[1765251783659,5.83579212,133.39,133.38,0.05426598]
[1765251783867,0.05052765,133.4,133.39,6.7465]
[1765251784056,0.05052765,133.4,133.39,8.5180705]
[1765251784456,3.2,133.44,133.41,6.7452]
[1765251784764,5.83079187,133.43,133.41,8.5167705]
[1765251785064,3.2,133.45,133.41,1.7715705]
[1765251785264,9.03078864,133.44,133.41,1.7715705]
[1765251785471,5.83078864,133.43,133.41,1.82307746]
[1765251785665,3.25467095,133.44,133.41,1.82307746]
[1765251785965,5.83060126,133.43,133.41,1.82307746]
[1765251786263,3.25467095,133.44,133.41,1.82307746]
[1765251786456,5.83041707,133.43,133.42,6.7449]
[1765251790062,3.25467095,133.44,133.42,6.7449]
[1765251791857,5.82690012,133.43,133.41,0.05150696]
[1765251792060,3.2,133.42,133.41,0.05150696]
[1765251793958,9.02680699,133.42,133.41,0.05150696]
[1765251797476,5.82680699,133.42,133.41,0.05150696]
[1765251797684,3.25467095,133.44,133.41,0.05150696]
[1765251797974,9.02656714,133.43,133.42,1.7715705]
[1765251798171,3.2,133.43,133.42,1.7715705]
[1765251799287,3.14467095,133.44,133.42,8.5161705]
[1765251799481,3.14467095,133.44,133.42,6.7446]
[1765251805973,3.14467095,133.44,133.42,8.5161705]
[1765251807679,3.14467095,133.44,133.42,6.7446]
[1765251814991,3.14467095,133.44,133.41,0.05150696]
[1765251814992,5.82200353,133.43,133.41,0.05150696]
[1765251815194,3.09,133.42,133.41,0.05150696]
[1765251816088,8.91273422,133.42,133.41,0.05150696]
[1765251816788,3.09,133.42,133.41,0.05150696]
[1765251817295,8.91378563,133.42,133.41,0.05150696]
[1765251818098,3.09,133.42,133.41,0.05150696]
[1765251819196,8.92517968,133.42,133.41,0.05150696]
[1765251820994,3.09,133.41,133.37,63.72]
[1765251821192,5.83831942,133.4,133.37,63.72]
[1765251821397,3.09,133.4,133.37,63.72]
[1765251821989,3.14339587,133.4,133.37,63.7739658]
[1765251822499,3.14339587,133.4,133.37,70.5212658]
[1765251823598,3.14339587,133.4,133.37,0.0539658]
[1765251823899,3.09,133.38,133.37,0.0539658]
[1765251825094,0.05339587,133.4,133.37,105.0143658]
[1765251825299,0.05339587,133.4,133.37,171.50075781]
[1765251825800,0.05339587,133.4,133.39,6.7465]
[1765251831588,0.05339587,133.4,133.37,9.56765781]
[1765251831790,0.05339587,133.4,133.37,73.28765781]
[1765251832500,0.05339587,133.4,133.38,6.7468]
[1765251833604,3.39339587,133.4,133.38,6.7468]
[1765251839293,0.05339587,133.4,133.38,6.7468]
[1765251842105,0.05339587,133.4,133.38,125.7468]
[1765251842410,0.05339587,133.4,133.39,2.76639201]
[1765251847907,0.05339587,133.4,133.39,121.76639201]
[1765251848809,0.05339587,133.4,133.39,185.48639201]
[1765251852511,3.24,133.44,133.39,290.42889201]
[1765251852713,9.07814929,133.43,133.39,290.42889201]
[1765251853017,3.24,133.43,133.39,290.42889201]
[1765251853515,0.04975364,133.42,133.41,6.7455]
[1765251853809,0.04975364,133.42,133.41,70.4655]
[1765251855508,0.04975364,133.42,133.41,73.23189201]
[1765251864003,0.04975364,133.42,133.41,70.4655]
[1765251868114,3.20975364,133.42,133.41,6.7455]
[1765251873222,0.04975364,133.42,133.41,6.7455]
[1765251873424,3.20975364,133.42,133.41,6.7455]
[1765251879123,9.05565568,133.42,133.4,0.05312055]
[1765251879322,3.16,133.41,133.4,0.05312055]
[1765251879621,9.00678668,133.41,133.4,0.05312055]
[1765251881723,3.16,133.41,133.4,0.05312055]
[1765251882225,9.0080089,133.41,133.4,0.05312055]
[1765251886032,8.9e-06,133.41,133.4,0.05312055]
[1765251886222,0.04975364,133.42,133.41,6.7455]
[1765251886421,0.04975364,133.42,133.41,8.51656842]
[1765251886927,3.20975364,133.42,133.41,8.51656842]
[1765251891333,3.20975364,133.42,133.41,6.7455]
[1765251891535,3.20975364,133.42,133.41,8.51656842]
[1765251892025,3.20975364,133.42,133.41,6.7455]
[1765251892226,3.20975364,133.42,133.41,8.51656842]
[1765251893336,0.04975364,133.42,133.41,8.51656842]
[1765251899338,3.10975364,133.42,133.41,8.51656842]
[1765251902743,3.10975364,133.42,133.41,6.7455]
[1765251902938,3.06,133.41,133.4,0.05312055]
[1765251903243,8.86272183,133.41,133.4,0.05312055]
[1765251912350,5.80272183,133.41,133.4,0.05312055]
[1765251912647,9.17272183,133.41,133.4,0.05312055]
[1765251913648,5.80272183,133.41,133.4,0.05312055]
[1765251914242,5.80272183,133.41,133.4,1.82418897]
[1765251916050,3.41975364,133.42,133.41,6.7455]
[1765251916237,9.2172478,133.42,133.41,6.7455]
[1765251920345,17.10479499,133.54,133.48,104.8747]
[1765251920540,8.65235449,133.53,133.49,65.49106842]
[1765251920742,3.16,133.53,133.49,1.77106842]
[1765251920941,8.65206958,133.52,133.49,65.49106842]
[1765251921141,3.16,133.52,133.49,65.49106842]
[1765251921345,3.21221504,133.52,133.49,65.54091626]
[1765251921644,3.16,133.6,133.53,104.8368]
[1765251921948,3.16,133.6,133.54,63.72]
[1765251922155,3.16,133.6,133.55,1.77106842]
[1765251922452,3.16,133.6,133.53,65.49106842]
[1765251922644,3.16,133.57,133.55,0.05132215]
[1765251924746,3.20732192,133.58,133.55,1.82239057]
[1765251926251,3.20732192,133.58,133.57,1.77106842]
[1765251929058,3.20732192,133.58,133.56,1.6824021]
[1765251930844,3.20732192,133.58,133.55,111.60952215]
[1765251931048,3.20732192,133.58,133.56,63.68]
[1765251934462,3.20732192,133.58,133.56,70.4176]
[1765251936064,3.20732192,133.58,133.56,6.7376]
[1765251952175,3.20732192,133.58,133.55,0.05132215]
[1765251953980,3.20732192,133.58,133.55,6.78962215]
[1765251954869,3.20732192,133.58,133.55,0.05132215]
[1765251955872,3.20732192,133.58,133.56,6.7378]
[1765251961276,3.20732192,133.58,133.55,0.05132215]
[1765251963179,5.58424912,133.57,133.55,0.05132215]
[1765251963485,3.12,133.55,133.51,6.7403]
[1765251963674,3.12,133.53,133.5,63.66]
[1765251964483,3.16820088,133.53,133.51,6.7402]
[1765251965281,5.60785831,133.52,133.51,6.7402]
[1765251968391,0.04820088,133.53,133.51,6.7402]
[1765251969885,0.04820088,133.53,133.51,125.7402]
[1765251970288,3.16820088,133.53,133.51,125.7402]
[1765251970681,0.04820088,133.53,133.51,125.7402]
[1765251972283,3.16820088,133.53,133.51,125.7402]
[1765251973887,0.04820088,133.53,133.51,9.36878673]
[1765251982103,0.04820088,133.53,133.51,128.36878673]
[1765251983109,0.04820088,133.53,133.52,63.66]
[1765251987707,3.25820088,133.53,133.51,128.36878673]
[1765251987908,3.25820088,133.53,133.5,119.05481224]
[1765251988214,3.25820088,133.53,133.5,0.05481224]
[1765251989519,3.25820088,133.53,133.46,104.8889]
[1765251989724,3.21,133.51,133.47,63.66]
[1765251990523,0.05474683,133.5,133.48,0.05498403]
[1765251991626,0.05474683,133.5,133.49,6.7413]
[1765251992723,0.05474683,133.5,133.49,8.42523886]
[1765251993722,3.26474683,133.5,133.48,0.05498403]
[1765252001629,3.26474683,133.5,133.48,6.79668403]
[1765252001835,0.05474683,133.5,133.49,1.68393886]
[1765252006038,79.08689524,133.57,133.49,1.68393886]
[1765252006039,3.21,133.54,133.5,104.8596]
[1765252006241,3.21,133.54,133.51,1.68393886]
[1765252007040,3.26128462,133.54,133.51,1.73287976]
[1765252007339,3.26128462,133.54,133.51,65.41287976]
[1765252007541,3.26128462,133.54,133.52,6.7398]
[1765252009031,0.05128462,133.54,133.52,6.7398]
[1765252009628,3.36128462,133.54,133.52,6.7398]
[1765252015743,0.05128462,133.54,133.52,6.7398]
[1765252015946,3.36128462,133.54,133.52,6.7398]
[1765252019349,0.05128462,133.54,133.52,6.7398]
[1765252019859,0.05128462,133.54,133.52,8.42373886]
[1765252020559,0.05128462,133.54,133.52,72.08373886]
[1765252021150,0.05128462,133.54,133.52,8.42373886]
[1765252021351,0.05128462,133.54,133.52,72.08373886]
[1765252022848,0.05128462,133.54,133.52,70.3998]
[1765252024558,3.26128462,133.54,133.52,70.3998]
[1765252025651,3.26128462,133.54,133.51,0.0489409]
[1765252029361,3.21,133.53,133.51,0.0489409]
[1765252031252,8.80711534,133.52,133.51,0.0489409]
[1765252031949,3.21,133.51,133.48,6.7416]
[1765252032956,3.25966233,133.51,133.48,6.79847528]
[1765252033154,3.25966233,133.51,133.48,0.05687528]
[1765252033362,3.21,133.49,133.48,0.05687528]
[1765252033548,3.21,133.49,133.44,72.10763886]
[1765252033857,3.21,133.49,133.44,70.4237]
[1765252034752,3.21,133.47,133.45,0.05248755]
[1765252041365,3.20643688,133.48,133.45,0.05248755]
[1765252047881,3.20643688,133.48,133.45,6.79578755]
[1765252048382,0.05643688,133.48,133.46,1.68393886]
[1765252048582,0.05643688,133.48,133.46,8.42653886]
[1765252054695,0.05643688,133.48,133.46,9.3745756]
[1765252056788,3.20643688,133.48,133.46,6.7426]
[1765252057380,3.20643688,133.48,133.45,182.75248755]
[1765252057584,3.20643688,133.48,133.45,63.75248755]
[1765252058391,3.20643688,133.48,133.45,0.05248755]
[1765252067497,3.15,133.47,133.45,0.05248755]
[1765252071207,3.18,133.46,133.41,6.7453]
[1765252071402,3.18,133.45,133.41,6.7453]
[1765252071608,3.18,133.45,133.39,6.7462]
[1765252072297,107.5190756,133.47,133.39,6.7462]
[1765252072298,3.18,133.42,133.41,0.05702461]
[1765252073813,3.18,133.42,133.39,6.7462]
[1765252074008,10.16515638,133.5,133.4,2.6319756]
[1765252074206,8.74934443,133.49,133.43,104.9152]
[1765252074412,3.18,133.49,133.45,2.6319756]
[1765252074609,3.18,133.49,133.43,104.9152]
[1765252075005,0.04767414,133.47,133.45,0.0572871]
[1765252075610,0.04767414,133.47,133.45,6.8003871]
[1765252076016,3.22767414,133.47,133.45,6.8003871]
[1765252082922,0.04767414,133.47,133.45,6.8003871]
[1765252085919,3.37767414,133.47,133.45,6.8003871]
[1765252089520,3.37767414,133.47,133.45,0.0572871]
[1765252093438,3.37767414,133.47,133.41,6.7452]
[1765252094322,3.33,133.46,133.41,6.7452]
[1765252097629,3.33,133.46,133.37,107.5896756]
[1765252097630,8.8807898,133.45,133.39,6.7463]
[1765252097834,3.33,133.42,133.39,6.7463]
[1765252101233,3.33,133.42,133.38,63.7]
[1765252102334,3.33,133.42,133.38,70.4469]
[1765252109834,3.33,133.42,133.39,6.7462]
[1765252112431,3.33,133.42,133.38,63.7]
[1765252112841,3.33,133.42,133.37,6.7473]
[1765252114642,3.33,133.42,133.36,119.0]
[1765252114840,3.41933456,133.43,133.39,6.7464]
[1765252122359,3.41933456,133.43,133.37,8.43432476]
[1765252123363,3.41933456,133.43,133.38,6.7469]
[1765252128356,3.12,133.42,133.37,119.0]
[1765252128559,3.12,133.42,133.36,6.7478]
[1765252129464,6.7457,133.41,133.36,6.7478]
[1765252129666,3.17434637,133.4,133.36,6.7478]
[1765252138970,3.17434637,133.4,133.34,191.15582476]
[1765252139362,3.17434637,133.4,133.34,184.40712476]
[1765252140074,3.17434637,133.4,133.36,8.43502476]
[1765252140075,0.05434637,133.4,133.36,8.43502476]
[1765252140274,3.17434637,133.4,133.36,8.43502476]
[1765252142478,3.17434637,133.4,133.36,1.68712476]
[1765252143579,3.12,133.39,133.36,1.68712476]
[1765252143774,3.12,133.39,133.35,119.0]
[1765252145078,3.12,133.39,133.33,1.68712476]
[1765252145473,3.12,133.39,133.34,6.7488]
[1765252145674,3.12,133.38,133.34,6.7488]
[1765252150884,3.12,133.38,133.34,125.7488]
[1765252151385,3.12,133.38,133.34,6.7488]
[1765252152285,0.05434637,133.4,133.37,1.68712476]
[1765252153283,3.22,133.48,133.4,104.9387]
[1765252153477,3.22,133.48,133.44,1.68712476]
[1765252153683,3.22,133.5,133.44,1.68712476]
[1765252153982,8.85275596,133.49,133.44,1.68712476]
[1765252154183,0.05658608,133.48,133.45,0.0490012]
[1765252156380,0.05658608,133.48,133.46,1.68712476]
[1765252156690,0.05658608,133.48,133.47,1.68712476]
[1765252157195,3.22,133.52,133.46,6.7426]
[1765252157784,3.22,133.52,133.47,1.68712476]
[1765252158386,3.22,133.52,133.48,0.05313617]
[1765252158387,0.05206034,133.51,133.48,0.05313617]
[1765252159187,0.05206034,133.51,133.49,1.68712476]
[1765252159387,0.05206034,133.51,133.49,65.40712476]
[1765252160480,0.05206034,133.51,133.49,72.14832476]
[1765252164095,0.05206034,133.51,133.49,70.4612]
[1765252165688,3.29206034,133.51,133.48,0.05313617]
[1765252165888,3.29206034,133.51,133.48,63.75313617]
[1765252172200,3.29206034,133.51,133.48,0.05313617]
[1765252172494,3.29206034,133.51,133.48,1.74026093]
[1765252175601,3.24,133.5,133.48,0.05313617]
[1765252180792,3.24,133.49,133.48,0.05313617]
[1765252180992,3.24,133.49,133.42,6.7447]
[1765252181191,3.24,133.49,133.38,121.6332521]
[1765252181396,3.24,133.49,133.39,168.6425]
[1765252182305,3.24,133.44,133.43,0.05267918]
[1765252184609,0.05481495,133.45,133.43,0.05267918]
[1765252185309,3.24,133.53,133.48,104.8725]
[1765252185502,3.24,133.53,133.48,107.5061521]
[1765252186205,0.05495418,133.52,133.49,0.04985592]
[1765252186606,0.05495418,133.52,133.49,6.79105592]
[1765252187610,3.29495418,133.52,133.49,0.04985592]
[1765252197313,3.14,133.5,133.49,0.04985592]
[1765252198313,8.75490479,133.5,133.49,0.04985592]
[1765252200911,8.75490479,133.5,133.45,189.4433]
[1765252201106,3.14,133.48,133.45,189.4433]
[1765252201617,3.14,133.48,133.45,182.7]
[1765252202113,3.14,133.48,133.45,182.74835996]
[1765252202114,3.19136975,133.48,133.45,182.74835996]
[1765252202311,3.19136975,133.48,133.45,119.04835996]
[1765252204312,3.19136975,133.48,133.45,0.04835996]
[1765252204511,0.05136975,133.48,133.45,0.04835996]
[1765252205711,0.05136975,133.48,133.45,6.79165996]
[1765252206106,0.05136975,133.48,133.46,9.3758521]
[1765252209619,0.05136975,133.48,133.46,6.7426]
[1765252210421,0.05136975,133.48,133.46,125.7426]
[1765252213614,3.36136975,133.48,133.46,125.7426]
[1765252213827,3.36136975,133.48,133.46,119.0]
[1765252216321,3.36136975,133.48,133.45,63.74835996]
[1765252217727,0.05136975,133.48,133.45,63.74835996]
[1765252218230,3.36136975,133.48,133.45,63.74835996]
[1765252218631,0.05136975,133.48,133.45,70.49155996]
[1765252220329,0.05136975,133.48,133.46,9.3759521]
[1765252223533,10.07932552,133.57,133.51,6.7402]
[1765252223729,9.19483633,133.59,133.51,6.7402]
[1765252223730,3.1,133.55,133.51,6.7402]